[Event "RUS-ch Women Blitz 2019"]
[Site "Sochi"]
[Date "2019.10.17"]
[Round "11.5"]
[White "Semenova, Elena"]
[Black "Charochkina, Daria"]
[Result "0-1"]
[ECO "B07"]
[WhiteElo "2282"]
[BlackElo "2355"]
[Annotator "NA"]
[PlyCount "90"]
[EventDate "2019.10.17"]
[EventType "swiss"]
[EventCountry "RUS"]
[SourceTitle "playchess.com"]
[Source "ChessBase"]
[SourceQuality "1"]
[TimeControl "180+2"]

1. e4 {[%emt 0:00:00]} d6 {[%emt 0:00:00]} 2. d4 {[%emt 0:00:00]} Nf6 {[%emt 0:00:00]} 3. Nc3 {[%emt 0:00:01]} c6 {[%emt 0:00:00]} 4. f4 {[%emt 0:00:01]} Qa5 {[%emt 0:00:01]} 5. Bd3 {[%emt 0:00:04]} e5 {[%emt 0:00:02]} 6. Nf3 {[%emt 0:00:01]} exd4 {[%emt 0:00:01]} 7. Nxd4 {[%emt 0:00:01]} g6 {[%emt 0:00:01]} 8. Nb3 {[%emt 0:00:18]} Qb6 {[%emt 0:00:08]} 9. Qe2 {[%emt 0:00:05]} Bg7 {[%emt 0:00:09]} 10. Be3 {[%emt 0:00:11]} Qc7 {[%emt 0:00:01]} 11. O-O {[%emt 0:00:14]} O-O {[%emt 0:00:10]} 12. Kh1 {[%emt 0:00:01]} Re8 {[%emt 0:00:10]} 13. a4 {[%emt 0:00:05]} Nbd7 {[%emt 0:00:01]} 14. Qf3 {[%emt 0:00:07]} b6 {[%emt 0:00:08]} 15. Nd4 {[%emt 0:00:10]} Bb7 {[%emt 0:00:02]} 16. Rad1 {[%emt 0:00:05]} a6 {[%emt 0:00:02]} 17. Qh3 {[%emt 0:00:31]} c5 {[%emt 0:00:03]} 18. Nf3 {[%emt 0:00:09]} c4 {[%emt 0:00:01]} 19. Be2 {[%emt 0:00:04]} Bxe4 {[%emt 0:00:11]} 20. Nxe4 {[%emt 0:00:17]} Nxe4 {[%emt 0:00:02]} 21. Bd4 {[%emt 0:00:05]} Ndf6 {[%emt 0:00:10]} 22. c3 {[%emt 0:00:17]} Re7 {[%emt 0:00:05]} 23. Ng5 {[%emt 0:00:19]} h6 {[%emt 0:01:00]} 24. Nxe4 {[%emt 0:00:04]} Nxe4 {[%emt 0:00:01]} 25. Bf3 {[%emt 0:00:17]} f5 {[%emt 0:00:13]} 26. Bxe4 {[%emt 0:00:05]} Rxe4 {[%emt 0:00:03]} 27. Bxg7 {[%emt 0:00:03]} Kxg7 {[%emt 0:00:01]} 28. Qf3 {[%emt 0:00:02]} Rae8 {[%emt 0:00:03]} 29. h3 {[%emt 0:00:01]} Qe7 {[%emt 0:00:07]} 30. Rd2 {[%emt 0:00:03]} Re1 {[%emt 0:00:03]} 31. Kh2 {[%emt 0:00:04]} Rxf1 32. Qxf1 {[%emt 0:00:01]} b5 {[%emt 0:00:15]} 33. Qd1 {[%emt 0:00:03]} Qe4 {[%emt 0:00:03]} 34. Rd4 {[%emt 0:00:02]} Qe3 {[%emt 0:00:00]} 35. Qf1 {[%emt 0:00:03]} Re4 {[%emt 0:00:05]} 36. Rxd6 {[%emt 0:00:03]} Rxf4 {[%emt 0:00:08]} 37. Rd7+ {[%emt 0:00:01]} Kf6 {[%emt 0:00:01]} 38. Qd1 {[%emt 0:00:02]} Re4 {[%emt 0:00:11]} 39. Qd6+ {[%emt 0:00:02]} Kg5 {[%emt 0:00:04]} 40. axb5 {[%emt 0:00:03]} axb5 {[%emt 0:00:01]} 41. Rg7 {[%emt 0:00:05]} Re6 {[%emt 0:00:10]} 42. Qd8+ {[%emt 0:00:03]} Kh5 {[%emt 0:00:01]} 43. Qd5 {[%emt 0:00:03]} Qf4+ {[%emt 0:00:02]} 44. g3 {[%emt 0:00:05]} Re2+ {[%emt 0:00:01]} 45. Kh1 {[%emt 0:00:03]} Qf1# {[%emt 0:00:02]} 0-1

[Event "RUS-ch Women Blitz 2019"]
[Site "Sochi"]
[Date "2019.10.17"]
[Round "11.6"]
[White "Voit, Daria"]
[Black "Guseva, Marina"]
[Result "1-0"]
[ECO "E15"]
[WhiteElo "2336"]
[BlackElo "2366"]
[Annotator "NA"]
[PlyCount "46"]
[EventDate "2019.10.17"]
[EventType "swiss"]
[EventCountry "RUS"]
[SourceTitle "playchess.com"]
[Source "ChessBase"]
[SourceQuality "1"]
[TimeControl "180+2"]

1. d4 {[%emt 0:00:00]} Nf6 {[%emt 0:00:00]} 2. Nf3 {[%emt 0:00:00]} e6 {[%emt 0:00:00]} 3. c4 {[%emt 0:00:01]} b6 {[%emt 0:00:02]} 4. g3 {[%emt 0:00:01]} Ba6 {[%emt 0:00:01]} 5. b3 {[%emt 0:00:03]} Bb4+ {[%emt 0:00:02]} 6. Bd2 {[%emt 0:00:01]} Be7 {[%emt 0:00:01]} 7. Bg2 {[%emt 0:00:01]} c6 {[%emt 0:00:01]} 8. O-O {[%emt 0:00:04]} d5 {[%emt 0:00:01]} 9. Bc3 {[%emt 0:00:01]} Nbd7 {[%emt 0:00:04]} 10. Nbd2 {[%emt 0:00:06]} O-O {[%emt 0:00:02]} 11. Re1 {[%emt 0:00:01]} c5 {[%emt 0:00:29]} 12. e4 {[%emt 0:00:06]} dxe4 {[%emt 0:00:02]} 13. Ng5 {[%emt 0:00:41]} cxd4 {[%emt 0:00:07]} 14. Bxd4 {[%emt 0:00:01]} Nc5 {[%emt 0:00:30]} 15. Ndxe4 {[%emt 0:00:03]} Ncxe4 {[%emt 0:00:04]} 16. Nxe4 {[%emt 0:00:07]} Nxe4 {[%emt 0:00:15]} 17. Bxe4 {[%emt 0:00:02]} Rc8 {[%emt 0:00:05]} 18. Qd3 {[%emt 0:01:03]} h6 {[%emt 0:00:48]} 19. Rad1 {[%emt 0:00:09]} Bc5 {[%emt 0:00:50]} 20. Bxc5 {[%emt 0:00:10]} bxc5 {[%emt 0:00:03]} 21. Qd7 {[%emt 0:00:11]} Qa5 {[%emt 0:00:07]} 22. Qxa7 {[%emt 0:00:05]} Rcd8 {[%emt 0:00:07]} 23. Bb7 {[%emt 0:00:12]} Rd7 1-0

[Event "RUS-ch Women Blitz 2019"]
[Site "Sochi"]
[Date "2019.10.17"]
[Round "11.7"]
[White "Chernyak, Viktoria"]
[Black "Borisova, Ekaterina"]
[Result "1-0"]
[ECO "A11"]
[WhiteElo "2284"]
[BlackElo "2347"]
[Annotator "NA"]
[PlyCount "61"]
[EventDate "2019.10.17"]
[EventType "swiss"]
[EventCountry "RUS"]
[SourceTitle "playchess.com"]
[Source "ChessBase"]
[SourceQuality "1"]
[TimeControl "180+2"]

1. c4 {[%emt 0:00:00]} c6 {[%emt 0:00:00]} 2. Nf3 {[%emt 0:00:00]} d5 {[%emt 0:00:00]} 3. e3 {[%emt 0:00:03]} Nf6 {[%emt 0:00:00]} 4. Nc3 {[%emt 0:00:01]} e6 {[%emt 0:00:01]} 5. b3 {[%emt 0:00:01]} Nbd7 {[%emt 0:00:02]} 6. Bb2 {[%emt 0:00:02]} Bd6 {[%emt 0:00:01]} 7. Qc2 {[%emt 0:00:01]} O-O {[%emt 0:00:02]} 8. O-O-O {[%emt 0:00:11]} Qe7 {[%emt 0:00:01]} 9. g4 {[%emt 0:00:01]} dxc4 {[%emt 0:00:10]} 10. Bxc4 {[%emt 0:00:09]} b5 {[%emt 0:00:16]} 11. Be2 {[%emt 0:00:16]} b4 {[%emt 0:00:08]} 12. Na4 {[%emt 0:00:10]} c5 {[%emt 0:00:09]} 13. g5 {[%emt 0:00:03]} Nd5 {[%emt 0:00:03]} 14. Bd3 {[%emt 0:00:12]} f5 {[%emt 0:00:48]} 15. gxf6 {[%emt 0:00:01]} N7xf6 {[%emt 0:00:02]} 16. Rhg1 {[%emt 0:00:28]} Bb7 {[%emt 0:00:07]} 17. Ne5 {[%emt 0:00:01]} Nb6 {[%emt 0:00:25]} 18. f4 {[%emt 0:00:42]} Nxa4 {[%emt 0:00:03]} 19. bxa4 {[%emt 0:00:01]} Rac8 {[%emt 0:00:11]} 20. Bc4 {[%emt 0:00:01]} Bd5 {[%emt 0:00:07]} 21. d3 {[%emt 0:00:01]} Bxe5 {[%emt 0:00:13]} 22. Bxe5 {[%emt 0:00:06]} Kh8 {[%emt 0:00:18]} 23. Rg3 {[%emt 0:00:01]} Bxc4 {[%emt 0:00:12]} 24. dxc4 {[%emt 0:00:16]} Rcd8 {[%emt 0:00:01]} 25. Rdg1 {[%emt 0:00:02]} Rg8 {[%emt 0:00:06]} 26. h4 {[%emt 0:00:04]} a5 {[%emt 0:00:18]} 27. Rg5 {[%emt 0:00:07]} Qb7 {[%emt 0:00:05]} 28. h5 {[%emt 0:00:12]} h6 {[%emt 0:00:04]} 29. Rg6 {[%emt 0:00:05]} Qe7 {[%emt 0:00:01]} 30. Bxf6 {[%emt 0:00:04]} gxf6 {[%emt 0:00:03]} 31. Rxh6+ {[%emt 0:00:01]} 1-0

[Event "RUS-ch Women Blitz 2019"]
[Site "Sochi"]
[Date "2019.10.17"]
[Round "11.8"]
[White "Afonasieva, Anna"]
[Black "Styazhkina, Anna"]
[Result "1-0"]
[ECO "D19"]
[WhiteElo "2312"]
[BlackElo "2280"]
[Annotator "NA"]
[PlyCount "65"]
[EventDate "2019.10.17"]
[EventType "swiss"]
[EventCountry "RUS"]
[SourceTitle "playchess.com"]
[Source "ChessBase"]
[SourceQuality "1"]
[TimeControl "180+2"]

1. d4 {[%emt 0:00:00]} d5 {[%emt 0:00:00]} 2. Nf3 {[%emt 0:00:00]} Nf6 {[%emt 0:00:00]} 3. c4 {[%emt 0:00:01]} c6 {[%emt 0:00:01]} 4. Nc3 {[%emt 0:00:01]} dxc4 {[%emt 0:00:01]} 5. a4 {[%emt 0:00:01]} Bf5 {[%emt 0:00:02]} 6. e3 {[%emt 0:00:01]} e6 {[%emt 0:00:01]} 7. Bxc4 {[%emt 0:00:02]} Bb4 {[%emt 0:00:01]} 8. O-O {[%emt 0:00:02]} O-O {[%emt 0:00:02]} 9. Qe2 {[%emt 0:00:01]} Bg6 {[%emt 0:00:24]} 10. Ne5 {[%emt 0:00:09]} Bh5 {[%emt 0:00:02]} 11. f3 {[%emt 0:00:07]} Nfd7 {[%emt 0:00:18]} 12. Nd3 {[%emt 0:00:13]} Bd6 {[%emt 0:00:08]} 13. Qf2 {[%emt 0:00:15]} c5 {[%emt 0:00:19]} 14. Ne4 {[%emt 0:00:11]} Qc7 {[%emt 0:00:11]} 15. Nxd6 {[%emt 0:00:26]} Qxd6 {[%emt 0:00:02]} 16. b3 {[%emt 0:00:30]} Nc6 {[%emt 0:00:37]} 17. dxc5 {[%emt 0:00:07]} Qe7 {[%emt 0:00:11]} 18. Bb2 {[%emt 0:00:02]} Bg6 {[%emt 0:00:05]} 19. e4 {[%emt 0:00:06]} Na5 {[%emt 0:00:06]} 20. Rac1 {[%emt 0:00:18]} Rac8 {[%emt 0:00:04]} 21. b4 {[%emt 0:00:06]} Nxc4 {[%emt 0:00:04]} 22. Rxc4 {[%emt 0:00:01]} Nb6 {[%emt 0:00:27]} 23. cxb6 {[%emt 0:00:20]} Rxc4 {[%emt 0:00:00]} 24. bxa7 {[%emt 0:00:01]} f6 {[%emt 0:00:24]} 25. Bd4 {[%emt 0:00:11]} Rd8 {[%emt 0:00:02]} 26. Bc5 {[%emt 0:00:03]} Qd7 {[%emt 0:00:04]} 27. Nb2 {[%emt 0:00:03]} Rc3 {[%emt 0:00:02]} 28. Qe2 {[%emt 0:00:16]} Qc8 {[%emt 0:00:04]} 29. Rd1 {[%emt 0:00:04]} Rxd1+ {[%emt 0:00:02]} 30. Qxd1 {[%emt 0:00:01]} Be8 {[%emt 0:00:02]} 31. Qd6 {[%emt 0:00:07]} Bd7 {[%emt 0:00:02]} 32. Qb8 {[%emt 0:00:05]} Rc1+ {[%emt 0:00:03]} 33. Kf2 {[%emt 0:00:02]} 1-0

[Event "RUS-ch Women Blitz 2019"]
[Site "Sochi"]
[Date "2019.10.17"]
[Round "11.9"]
[White "Yakimova, Mariya"]
[Black "Bykova, Anastasia"]
[Result "1/2-1/2"]
[ECO "D18"]
[WhiteElo "2276"]
[BlackElo "2247"]
[Annotator "NA"]
[PlyCount "117"]
[EventDate "2019.10.17"]
[EventType "swiss"]
[EventCountry "RUS"]
[SourceTitle "playchess.com"]
[Source "ChessBase"]
[SourceQuality "1"]
[TimeControl "180+2"]

1. d4 {[%emt 0:00:00]} d5 {[%emt 0:00:00]} 2. Nf3 {[%emt 0:00:00]} Nf6 {[%emt 0:00:00]} 3. c4 {[%emt 0:00:00]} c6 {[%emt 0:00:00]} 4. Nc3 {[%emt 0:00:02]} dxc4 {[%emt 0:00:02]} 5. a4 {[%emt 0:00:01]} Bf5 {[%emt 0:00:01]} 6. e3 {[%emt 0:00:06]} e6 {[%emt 0:00:01]} 7. Bxc4 {[%emt 0:00:01]} Bb4 {[%emt 0:00:01]} 8. O-O {[%emt 0:00:03]} Nbd7 {[%emt 0:00:01]} 9. Qb3 {[%emt 0:00:15]} Qb6 {[%emt 0:00:05]} 10. a5 {[%emt 0:00:06]} Bxa5 {[%emt 0:00:04]} 11. Rxa5 {[%emt 0:00:14]} Qxa5 {[%emt 0:00:01]} 12. Qxb7 {[%emt 0:00:02]} O-O {[%emt 0:00:11]} 13. Qxc6 {[%emt 0:00:09]} Rab8 {[%emt 0:00:21]} 14. Qa4 {[%emt 0:00:20]} Qc7 {[%emt 0:00:20]} 15. Nb5 {[%emt 0:00:08]} Nb6 {[%emt 0:00:03]} 16. Nxc7 {[%emt 0:00:07]} Nxa4 {[%emt 0:00:01]} 17. b3 {[%emt 0:00:12]} Nb6 {[%emt 0:00:03]} 18. Ne5 {[%emt 0:00:10]} Nxc4 {[%emt 0:00:44]} 19. bxc4 {[%emt 0:00:01]} Rb1 {[%emt 0:00:08]} 20. Ba3 {[%emt 0:00:31]} Rxf1+ {[%emt 0:00:03]} 21. Kxf1 {[%emt 0:00:01]} Rc8 {[%emt 0:00:03]} 22. Nb5 {[%emt 0:00:07]} Ne4 {[%emt 0:00:14]} 23. Nxa7 {[%emt 0:00:26]} Ra8 {[%emt 0:00:00]} 24. Nec6 {[%emt 0:00:08]} Nd2+ {[%emt 0:00:03]} 25. Ke2 {[%emt 0:00:04]} Nxc4 {[%emt 0:00:01]} 26. Bc5 {[%emt 0:00:09]} Be4 {[%emt 0:00:25]} 27. Ne7+ {[%emt 0:00:01]} Kh8 {[%emt 0:00:03]} 28. f3 {[%emt 0:00:01]} Bb7 {[%emt 0:00:12]} 29. e4 {[%emt 0:00:13]} Ba6 {[%emt 0:00:06]} 30. Kf2 {[%emt 0:00:04]} Nd6 {[%emt 0:00:06]} 31. Nac6 {[%emt 0:00:07]} Nc8 {[%emt 0:00:05]} 32. Ne5 {[%emt 0:00:10]} Nxe7 {[%emt 0:00:05]} 33. Bxe7 {[%emt 0:00:01]} Kg8 {[%emt 0:00:04]} 34. d5 {[%emt 0:00:03]} exd5 {[%emt 0:00:16]} 35. exd5 {[%emt 0:00:00]} f6 {[%emt 0:00:01]} 36. Nc6 {[%emt 0:00:04]} Kf7 {[%emt 0:00:02]} 37. d6 {[%emt 0:00:02]} Ke6 {[%emt 0:00:09]} 38. Nd4+ {[%emt 0:00:03]} Kd7 {[%emt 0:00:01]} 39. Nf5 {[%emt 0:00:01]} g6 {[%emt 0:00:04]} 40. Ne3 {[%emt 0:00:01]} f5 {[%emt 0:00:04]} 41. Nd5 {[%emt 0:00:03]} Rb8 {[%emt 0:00:00]} 42. Nf6+ Ke6 43. Nxh7 {[%emt 0:00:03]} Rb2+ {[%emt 0:00:02]} 44. Kg3 {[%emt 0:00:03]} Bf1 {[%emt 0:00:01]} 45. Ng5+ {[%emt 0:00:01]} Kd7 {[%emt 0:00:00]} 46. Kf4 {[%emt 0:00:04]} Bxg2 {[%emt 0:00:03]} 47. Nf7 {[%emt 0:00:01]} Ke6 {[%emt 0:00:07]} 48. Ng5+ {[%emt 0:00:01]} Kd7 {[%emt 0:00:01]} 49. Nf7 {[%emt 0:00:01]} Ke6 {[%emt 0:00:01]} 50. Nd8+ {[%emt 0:00:00]} Kd7 {[%emt 0:00:00]} 51. Nf7 {[%emt 0:00:02]} Rb3 {[%emt 0:00:04]} 52. Ne5+ {[%emt 0:00:01]} Ke6 {[%emt 0:00:00]} 53. Nxg6 {[%emt 0:00:07]} Rxf3+ {[%emt 0:00:02]} 54. Kg5 {[%emt 0:00:01]} Kd7 {[%emt 0:00:05]} 55. Nf8+ {[%emt 0:00:02]} Ke8 {[%emt 0:00:02]} 56. Kf6 {[%emt 0:00:01]} Rd3 {[%emt 0:00:02]} 57. d7+ {[%emt 0:00:04]} Rxd7 {[%emt 0:00:02]} 58. Nxd7 {[%emt 0:00:01]} Kxd7 {[%emt 0:00:01]} 59. Bc5 {[%emt 0:00:02]} 1/2-1/2

[Event "RUS-ch Women Blitz 2019"]
[Site "Sochi"]
[Date "2019.10.17"]
[Round "11.10"]
[White "Filippova, Darya"]
[Black "Bivol, Alina"]
[Result "1-0"]
[ECO "E70"]
[WhiteElo "2010"]
[BlackElo "2371"]
[Annotator "NA"]
[PlyCount "63"]
[EventDate "2019.10.17"]
[EventType "swiss"]
[EventCountry "RUS"]
[SourceTitle "playchess.com"]
[Source "ChessBase"]
[SourceQuality "1"]
[TimeControl "180+2"]

1. c4 {[%emt 0:00:00]} Nf6 {[%emt 0:00:34]} 2. Nc3 {[%emt 0:00:03]} g6 {[%emt 0:00:06]} 3. e4 {[%emt 0:00:04]} d6 {[%emt 0:00:00]} 4. d4 {[%emt 0:00:02]} Bg7 {[%emt 0:00:01]} 5. Nge2 {[%emt 0:00:05]} O-O {[%emt 0:00:02]} 6. Ng3 {[%emt 0:00:02]} c5 {[%emt 0:00:09]} 7. d5 {[%emt 0:00:05]} a6 {[%emt 0:00:01]} 8. Be2 {[%emt 0:00:07]} h5 {[%emt 0:00:17]} 9. h4 {[%emt 0:00:06]} Bg4 {[%emt 0:00:04]} 10. f3 {[%emt 0:00:04]} Bd7 {[%emt 0:00:01]} 11. Nf1 {[%emt 0:00:05]} b5 {[%emt 0:00:10]} 12. g4 {[%emt 0:00:07]} b4 {[%emt 0:00:18]} 13. Nb1 {[%emt 0:00:18]} hxg4 {[%emt 0:00:21]} 14. Bg5 {[%emt 0:00:04]} gxf3 {[%emt 0:00:05]} 15. Bxf3 {[%emt 0:00:02]} Qc8 {[%emt 0:00:03]} 16. h5 {[%emt 0:00:24]} Nh7 {[%emt 0:00:15]} 17. Bxe7 {[%emt 0:00:27]} Re8 {[%emt 0:00:01]} 18. Bxd6 {[%emt 0:00:06]} Ng5 {[%emt 0:00:31]} 19. hxg6 {[%emt 0:00:11]} fxg6 {[%emt 0:00:02]} 20. Nbd2 {[%emt 0:00:07]} Nxf3+ {[%emt 0:00:16]} 21. Qxf3 {[%emt 0:00:04]} Bg4 {[%emt 0:00:01]} 22. Qg3 {[%emt 0:00:14]} Qd7 {[%emt 0:00:01]} 23. Ne3 {[%emt 0:00:06]} Bh5 {[%emt 0:00:02]} 24. Rxh5 {[%emt 0:00:08]} gxh5 {[%emt 0:00:01]} 25. O-O-O {[%emt 0:00:05]} Qf7 {[%emt 0:00:19]} 26. Nf5 {[%emt 0:00:02]} Qf6 {[%emt 0:00:01]} 27. Rg1 {[%emt 0:00:20]} Qxb2+ {[%emt 0:00:01]} 28. Kd1 {[%emt 0:00:00]} Ra7 {[%emt 0:00:01]} 29. e5 {[%emt 0:00:08]} Qa1+ 30. Ke2 Qb2 {[%emt 0:00:12]} 31. Nxg7 {[%emt 0:00:05]} Kh8 {[%emt 0:00:02]} 32. Qg5 {[%emt 0:00:07]} 1-0

[Event "RUS-ch Women Blitz 2019"]
[Site "Sochi"]
[Date "2019.10.17"]
[Round "11.11"]
[White "Sukhareva, Evgeniya"]
[Black "Dubnikova, Anastasia"]
[Result "1-0"]
[ECO "E35"]
[WhiteElo "2122"]
[BlackElo "2171"]
[Annotator "NA"]
[PlyCount "82"]
[EventDate "2019.10.17"]
[EventType "swiss"]
[EventCountry "RUS"]
[SourceTitle "playchess.com"]
[Source "ChessBase"]
[SourceQuality "1"]
[TimeControl "180+2"]

1. d4 {[%emt 0:00:00]} Nf6 {[%emt 0:00:01]} 2. c4 {[%emt 0:00:00]} e6 {[%emt 0:00:04]} 3. Nc3 {[%emt 0:00:01]} Bb4 {[%emt 0:00:01]} 4. Qc2 {[%emt 0:00:01]} d5 {[%emt 0:00:02]} 5. cxd5 {[%emt 0:00:03]} exd5 {[%emt 0:00:01]} 6. Bg5 {[%emt 0:00:02]} c6 {[%emt 0:00:02]} 7. e3 {[%emt 0:00:02]} h6 {[%emt 0:00:02]} 8. Bh4 {[%emt 0:00:01]} Nbd7 {[%emt 0:00:18]} 9. Nf3 {[%emt 0:00:02]} O-O {[%emt 0:00:04]} 10. Bd3 {[%emt 0:00:01]} Re8 {[%emt 0:00:02]} 11. O-O {[%emt 0:00:03]} a6 {[%emt 0:00:03]} 12. h3 {[%emt 0:00:02]} Qc7 {[%emt 0:00:04]} 13. Rac1 {[%emt 0:00:22]} Bd6 {[%emt 0:00:14]} 14. Ne2 {[%emt 0:00:07]} Ne4 {[%emt 0:00:20]} 15. Bxe4 {[%emt 0:00:17]} Rxe4 {[%emt 0:00:10]} 16. Nc3 {[%emt 0:00:13]} Re8 {[%emt 0:00:35]} 17. Nxd5 {[%emt 0:00:06]} Qb8 {[%emt 0:00:04]} 18. Nc3 {[%emt 0:00:08]} g5 {[%emt 0:00:07]} 19. Nxg5 {[%emt 0:00:01]} hxg5 {[%emt 0:00:01]} 20. Bxg5 {[%emt 0:00:01]} Nf8 {[%emt 0:00:11]} 21. Ne4 {[%emt 0:00:02]} Rxe4 {[%emt 0:00:25]} 22. Qxe4 {[%emt 0:00:03]} Be6 {[%emt 0:00:01]} 23. f4 {[%emt 0:00:14]} Bd5 {[%emt 0:00:16]} 24. Qf5 {[%emt 0:00:07]} Qe8 {[%emt 0:00:03]} 25. Rce1 {[%emt 0:00:33]} Qe6 {[%emt 0:00:26]} 26. Qc2 {[%emt 0:00:09]} Be4 {[%emt 0:00:02]} 27. Qf2 {[%emt 0:00:03]} f5 {[%emt 0:00:04]} 28. Qg3 {[%emt 0:00:11]} Ng6 {[%emt 0:00:04]} 29. h4 {[%emt 0:00:06]} Kf7 {[%emt 0:00:04]} 30. h5 {[%emt 0:00:03]} Ne7 {[%emt 0:00:02]} 31. Qh4 {[%emt 0:00:28]} Rh8 {[%emt 0:00:06]} 32. h6 {[%emt 0:00:01]} Qg6 {[%emt 0:00:02]} 33. Rf2 {[%emt 0:00:05]} Ng8 {[%emt 0:00:02]} 34. g4 {[%emt 0:00:22]} Nxh6 {[%emt 0:00:05]} 35. Rh2 {[%emt 0:00:02]} Bf8 {[%emt 0:00:02]} 36. Kf1 {[%emt 0:00:02]} Bg7 {[%emt 0:00:02]} 37. Bd8 {[%emt 0:00:02]} Nxg4 {[%emt 0:00:02]} 38. Qe7+ {[%emt 0:00:02]} Kg8 {[%emt 0:00:02]} 39. Rxh8+ {[%emt 0:00:02]} Kxh8 {[%emt 0:00:02]} 40. Ke2 {[%emt 0:00:02]} Qh5 {[%emt 0:00:02]} 41. Qh4 {[%emt 0:00:02]} Qxh4 {[%emt 0:00:02]} 1-0

[Event "RUS-ch Women Blitz 2019"]
[Site "Sochi"]
[Date "2019.10.17"]
[Round "11.12"]
[White "Koroleva, Evgeniya"]
[Black "Lysenko, Margarita"]
[Result "0-1"]
[ECO "E24"]
[WhiteElo "1855"]
[BlackElo "2243"]
[Annotator "NA"]
[PlyCount "52"]
[EventDate "2019.10.17"]
[EventType "swiss"]
[EventCountry "RUS"]
[SourceTitle "playchess.com"]
[Source "ChessBase"]
[SourceQuality "1"]
[TimeControl "180+2"]

1. d4 {[%emt 0:00:00]} Nf6 {[%emt 0:00:00]} 2. c4 {[%emt 0:00:00]} e6 {[%emt 0:00:00]} 3. Nc3 {[%emt 0:00:00]} Bb4 {[%emt 0:00:02]} 4. a3 {[%emt 0:00:00]} Bxc3+ {[%emt 0:00:04]} 5. bxc3 {[%emt 0:00:01]} b6 {[%emt 0:00:24]} 6. f3 {[%emt 0:00:01]} Nc6 {[%emt 0:00:34]} 7. e4 {[%emt 0:00:02]} Na5 {[%emt 0:00:16]} 8. e5 {[%emt 0:00:30]} Ng8 {[%emt 0:00:02]} 9. Bd3 {[%emt 0:00:02]} Ba6 {[%emt 0:00:04]} 10. Qe2 {[%emt 0:00:06]} Ne7 {[%emt 0:00:16]} 11. Bg5 {[%emt 0:00:08]} h6 {[%emt 0:00:02]} 12. Bh4 {[%emt 0:00:01]} c5 {[%emt 0:00:22]} 13. d5 {[%emt 0:00:16]} g5 {[%emt 0:00:07]} 14. Bf2 {[%emt 0:00:17]} exd5 {[%emt 0:00:30]} 15. cxd5 {[%emt 0:00:01]} Bxd3 {[%emt 0:00:06]} 16. Qxd3 {[%emt 0:00:01]} c4 {[%emt 0:00:01]} 17. Qe4 {[%emt 0:00:25]} Rc8 {[%emt 0:00:16]} 18. Rd1 {[%emt 0:00:03]} Nb3 {[%emt 0:00:15]} 19. h4 {[%emt 0:00:04]} Ng6 {[%emt 0:00:03]} 20. h5 {[%emt 0:00:20]} Nf4 {[%emt 0:00:05]} 21. Ne2 {[%emt 0:00:34]} Nd3+ {[%emt 0:00:01]} 22. Rxd3 {[%emt 0:00:08]} cxd3 {[%emt 0:00:01]} 23. Qxd3 {[%emt 0:00:01]} Qe7 {[%emt 0:00:04]} 24. O-O {[%emt 0:00:18]} Qxe5 {[%emt 0:00:05]} 25. Nd4 {[%emt 0:00:24]} Qxd5 {[%emt 0:00:04]} 26. Re1+ {[%emt 0:00:01]} Kf8 {[%emt 0:00:02]} 0-1

[Event "RUS-ch Women Blitz 2019"]
[Site "Sochi"]
[Date "2019.10.17"]
[Round "12.1"]
[White "Bodnaruk, Anastasia"]
[Black "Maltsevskaya, Aleksandra"]
[Result "1-0"]
[ECO "B45"]
[WhiteElo "2419"]
[BlackElo "2333"]
[Annotator "NA"]
[PlyCount "95"]
[EventDate "2019.10.17"]
[EventType "swiss"]
[EventCountry "RUS"]
[SourceTitle "playchess.com"]
[Source "ChessBase"]
[SourceQuality "1"]
[TimeControl "180+2"]

1. e4 {[%emt 0:00:00]} c5 {[%emt 0:00:00]} 2. Nf3 {[%emt 0:00:02]} e6 {[%emt 0:00:00]} 3. Nc3 {[%emt 0:00:01]} Nc6 {[%emt 0:00:01]} 4. d4 {[%emt 0:00:01]} cxd4 {[%emt 0:00:02]} 5. Nxd4 {[%emt 0:00:01]} Nf6 {[%emt 0:00:01]} 6. Ndb5 {[%emt 0:00:05]} Bc5 {[%emt 0:00:01]} 7. Nd6+ {[%emt 0:00:10]} Ke7 {[%emt 0:00:01]} 8. Bf4 {[%emt 0:00:13]} e5 {[%emt 0:00:15]} 9. Nf5+ {[%emt 0:00:22]} Kf8 {[%emt 0:00:00]} 10. Bg5 {[%emt 0:00:05]} h6 {[%emt 0:00:23]} 11. Be3 {[%emt 0:00:07]} Bb4 {[%emt 0:00:15]} 12. Nd6 {[%emt 0:00:34]} Nd4 {[%emt 0:01:28]} 13. Nxc8 {[%emt 0:00:25]} Rxc8 {[%emt 0:00:02]} 14. Bd2 {[%emt 0:00:23]} d5 {[%emt 0:00:16]} 15. Bd3 {[%emt 0:00:31]} dxe4 {[%emt 0:00:32]} 16. Nxe4 {[%emt 0:00:01]} Bxd2+ {[%emt 0:00:01]} 17. Qxd2 {[%emt 0:00:05]} Nxe4 {[%emt 0:00:02]} 18. Bxe4 {[%emt 0:00:01]} Qb6 {[%emt 0:00:06]} 19. c3 {[%emt 0:00:06]} Ne6 {[%emt 0:00:01]} 20. O-O {[%emt 0:00:03]} Ke7 {[%emt 0:00:01]} 21. g3 {[%emt 0:00:05]} Rhd8 {[%emt 0:00:01]} 22. Qe2 {[%emt 0:00:00]} Rc7 {[%emt 0:00:04]} 23. Rfd1 {[%emt 0:00:04]} Rxd1+ {[%emt 0:00:07]} 24. Rxd1 {[%emt 0:00:01]} Rd7 {[%emt 0:00:00]} 25. Rxd7+ {[%emt 0:00:06]} Kxd7 {[%emt 0:00:01]} 26. b4 {[%emt 0:00:05]} a5 {[%emt 0:00:03]} 27. a3 {[%emt 0:00:04]} axb4 {[%emt 0:00:02]} 28. axb4 {[%emt 0:00:01]} Ng5 {[%emt 0:00:04]} 29. Bd5 {[%emt 0:00:03]} Qd6 {[%emt 0:00:03]} 30. Bxb7 {[%emt 0:00:04]} e4 {[%emt 0:00:03]} 31. Bxe4 {[%emt 0:00:05]} Qe6 {[%emt 0:00:00]} 32. Qd2+ {[%emt 0:00:04]} Kc7 {[%emt 0:00:01]} 33. Bg2 {[%emt 0:00:02]} f5 {[%emt 0:00:03]} 34. h4 {[%emt 0:00:01]} Nf7 {[%emt 0:00:02]} 35. Qe3 {[%emt 0:00:03]} Qd6 {[%emt 0:00:03]} 36. b5 {[%emt 0:00:02]} Ne5 {[%emt 0:00:02]} 37. Qa7+ {[%emt 0:00:02]} Kc8 {[%emt 0:00:03]} 38. Qa8+ {[%emt 0:00:02]} Kc7 {[%emt 0:00:01]} 39. Qb7+ {[%emt 0:00:02]} Kd8 {[%emt 0:00:01]} 40. Qd5 {[%emt 0:00:01]} Kd7 {[%emt 0:00:04]} 41. b6 {[%emt 0:00:03]} Nc6 {[%emt 0:00:03]} 42. b7 {[%emt 0:00:03]} Nb8 {[%emt 0:00:02]} 43. Qb5+ {[%emt 0:00:02]} Kc7 {[%emt 0:00:01]} 44. c4 {[%emt 0:00:01]} Qd1+ {[%emt 0:00:01]} 45. Kh2 {[%emt 0:00:01]} Qd4 {[%emt 0:00:02]} 46. Qd5 {[%emt 0:00:02]} Qxf2 {[%emt 0:00:01]} 47. c5 {[%emt 0:00:02]} Qe3 {[%emt 0:00:03]} 48. Qd6# {[%emt 0:00:01]} 1-0